bitfinex/quotes_BTCUSD_20251012
["timestamp","ask_amount","ask_price","bid_price","bid_amount"]
[1760310401685,0.87773083,115120.0,115110.0,1.31275368]
[1760310402107,0.3692627,115120.0,115110.0,1.31275368]
[1760310402298,0.39340269,115120.0,115110.0,1.3082116]
[1760310402443,0.29340269,115120.0,115110.0,1.3082116]
[1760310402649,0.33825544,115120.0,115110.0,1.3082116]
[1760310402860,0.34279661,115120.0,115110.0,1.3082116]
[1760310403534,0.37094851,115120.0,115110.0,1.3082116]
[1760310403739,0.27094851,115120.0,115110.0,1.3082116]
[1760310403932,0.37294851,115120.0,115110.0,1.30988386]
[1760310404132,0.71094851,115120.0,115110.0,1.30988386]
[1760310404614,0.64903779,115120.0,115110.0,1.30988386]
[1760310404836,0.36327337,115120.0,115110.0,1.25141386]
[1760310405052,0.71080044,115120.0,115110.0,1.25141386]
[1760310405499,0.70980044,115120.0,115110.0,1.25141386]
[1760310405702,0.71080044,115120.0,115110.0,1.25141386]
[1760310405910,0.70980044,115120.0,115110.0,1.25141386]
[1760310406124,0.75400636,115120.0,115110.0,1.25141386]
[1760310406555,0.75200636,115120.0,115110.0,1.25141386]
[1760310406933,0.75300636,115120.0,115110.0,1.25141386]
[1760310407292,0.65300636,115120.0,115110.0,1.25141386]
[1760310407494,0.75300636,115120.0,115110.0,1.25141386]
[1760310407695,0.34064854,115120.0,115110.0,1.25141386]
[1760310408128,0.67964854,115120.0,115110.0,1.25141386]
[1760310408331,0.62285446,115120.0,115110.0,1.25141386]
[1760310408530,0.38385446,115120.0,115110.0,1.25141386]
[1760310408836,0.36797546,115120.0,115110.0,1.01919466]
[1760310409238,0.72387123,115120.0,115110.0,1.01919466]
[1760310409444,0.68066531,115120.0,115110.0,0.96040404]
[1760310411160,0.68066531,115120.0,115110.0,1.02522404]
[1760310411161,0.66476954,115120.0,115110.0,1.02522404]
[1760310411745,0.49103779,115120.0,115110.0,1.02522404]
[1760310411948,0.66476954,115120.0,115110.0,1.02522404]
[1760310412524,0.66476954,115120.0,115110.0,0.94013404]
[1760310412525,0.59492144,115120.0,115110.0,0.94013404]
[1760310412639,0.75714546,115120.0,115110.0,0.94013404]
[1760310413314,0.65714546,115120.0,115110.0,0.94013404]
[1760310413487,0.75714546,115120.0,115110.0,0.94013404]
[1760310413884,0.65714546,115120.0,115110.0,0.94013404]
[1760310414178,0.75714546,115120.0,115110.0,0.94013404]
[1760310414412,0.65714546,115120.0,115110.0,0.93972558]
[1760310414576,0.75714546,115120.0,115110.0,0.93972558]
[1760310415902,0.71084397,115120.0,115110.0,0.93972558]
[1760310416314,0.61084397,115120.0,115110.0,0.93972558]
[1760310416545,0.71084397,115120.0,115110.0,0.93972558]
[1760310417749,0.61084397,115120.0,115110.0,0.93972558]
[1760310417941,0.71084397,115120.0,115110.0,0.93972558]
[1760310418929,0.78301025,115120.0,115110.0,0.93518403]
[1760310419126,0.77085909,115120.0,115110.0,0.93518403]
[1760310419322,0.67085909,115120.0,115110.0,0.93518403]
[1760310419523,0.81406501,115120.0,115110.0,0.93518403]
[1760310420181,0.71860697,115120.0,115110.0,0.93518403]
[1760310420419,0.81860697,115120.0,115110.0,0.93518403]
[1760310420786,0.77540105,115120.0,115110.0,0.87611091]
[1760310421018,0.17377704,115090.0,115080.0,0.09296887]
[1760310421160,0.57424146,115090.0,115080.0,0.13472887]
[1760310421346,0.69878292,115090.0,115080.0,0.13019617]
[1760310421939,0.59878292,115090.0,115080.0,0.13019617]
[1760310422142,0.69878292,115090.0,115080.0,0.13019617]
[1760310422304,0.69878292,115090.0,115080.0,0.13069114]
[1760310422502,0.70331562,115090.0,115080.0,0.13069114]
[1760310422703,0.67877416,115090.0,115080.0,0.13069114]
[1760310423706,0.70492149,115090.0,115080.0,0.13069114]
[1760310424106,0.16099255,115090.0,115080.0,0.16679114]
[1760310424320,0.67617516,115090.0,115080.0,0.19551114]
[1760310424555,0.66199255,115090.0,115080.0,0.19514353]
[1760310424877,0.66199255,115090.0,115080.0,0.36893567]
[1760310424878,1.00299255,115090.0,115080.0,0.36893567]
[1760310425033,0.13684522,115090.0,115080.0,0.36893567]
[1760310425234,0.33310867,115090.0,115080.0,0.16642353]
[1760310425441,0.34600606,115090.0,115080.0,0.04176]
[1760310425658,0.17222902,115090.0,115080.0,0.04176]
[1760310425857,0.06975163,115090.0,115080.0,0.13100865]
[1760310426060,0.40875163,115090.0,115080.0,0.13100865]
[1760310426263,0.41122902,115090.0,115080.0,0.09490865]
[1760310426466,0.41122902,115090.0,115080.0,0.07048]
[1760310426873,0.68500606,115090.0,115080.0,0.04176]
[1760310427074,0.68500606,115090.0,115080.0,0.04167043]
[1760310427281,0.51122902,115090.0,115080.0,0.21546257]
[1760310428115,0.41122902,115090.0,115080.0,0.26316322]
[1760310428318,0.39456902,115090.0,115080.0,0.26316322]
[1760310428527,0.72557796,115090.0,115080.0,0.03721852]
[1760310429634,0.62657796,115090.0,115080.0,0.03721852]
[1760310429864,0.72757796,115090.0,115080.0,0.03721852]
[1760310430441,0.62757796,115090.0,115080.0,0.03721852]
[1760310430664,0.72757796,115090.0,115080.0,0.03721852]
[1760310430803,0.62657796,115090.0,115080.0,0.03721852]
[1760310431006,0.72657796,115090.0,115080.0,0.03721852]
[1760310431656,0.62557796,115090.0,115080.0,0.03721852]
[1760310431984,0.72557796,115090.0,115080.0,0.03889145]
[1760310432560,0.62557796,115090.0,115080.0,0.03843293]
[1760310432724,0.72657796,115090.0,115080.0,0.03843293]
[1760310432924,0.72757796,115090.0,115080.0,0.03843293]
[1760310433185,0.72657796,115090.0,115080.0,0.03843293]
[1760310433513,0.72757796,115090.0,115080.0,0.03843293]
[1760310433956,0.69742606,115090.0,115080.0,0.03843293]
[1760310434557,0.68700606,115090.0,115080.0,0.03843293]
[1760310434756,0.69642606,115090.0,115080.0,0.03843293]
[1760310434955,0.69742606,115090.0,115080.0,0.03843293]
[1760310435331,0.69642606,115090.0,115080.0,0.03843293]
[1760310435532,0.68500606,115090.0,115080.0,0.07453293]
[1760310435756,0.68500606,115090.0,115080.0,0.03843293]
[1760310435920,0.58600606,115090.0,115080.0,0.03843293]
[1760310436120,0.03584522,115090.0,115080.0,0.33007507]
[1760310436329,0.1,115130.0,115120.0,0.17373175]
[1760310436534,0.64808927,115130.0,115120.0,0.23855175]
[1760310436783,0.63390666,115130.0,115120.0,0.23855175]
[1760310437185,0.03390666,115130.0,115120.0,0.23855175]
[1760310437361,0.08626927,115130.0,115120.0,0.23855175]
[1760310437564,0.42726927,115130.0,115120.0,0.23868053]
[1760310437774,0.41308666,115130.0,115120.0,0.23868053]
[1760310437970,0.07308666,115130.0,115120.0,0.23868053]
[1760310438183,0.08726927,115130.0,115120.0,0.23868053]
[1760310438482,0.05362912,115130.0,115120.0,0.23868053]
[1760310438685,0.05262912,115130.0,115120.0,0.23868053]
[1760310439076,0.03844651,115130.0,115120.0,0.23868053]
[1760310439303,0.41754651,115130.0,115120.0,0.23868053]
[1760310439680,0.42691505,115130.0,115120.0,0.23868053]
[1760310442667,0.38781505,115130.0,115120.0,0.23868053]
[1760310443273,0.47052774,115130.0,115120.0,0.17386053]
[1760310443677,0.47052774,115130.0,115120.0,0.21480053]
[1760310444424,0.43142774,115130.0,115120.0,0.24317053]
[1760310444817,0.43142774,115130.0,115120.0,0.34928203]
[1760310445150,0.07096774,115130.0,115120.0,0.34928203]
[1760310445354,0.08515035,115130.0,115120.0,0.34928203]
[1760310445560,0.07096774,115130.0,115120.0,0.34928203]
[1760310445770,0.02735505,115130.0,115120.0,0.34928203]
[1760310445987,0.04778124,115140.0,115120.0,0.31599954]
[1760310446200,0.52046,115190.0,115180.0,0.17364125]
[1760310446374,0.1,115180.0,115170.0,0.1736437]
[1760310446523,0.019597,115180.0,115170.0,0.3424637]
[1760310446725,0.01156121,115180.0,115170.0,0.3424637]
[1760310446914,0.01156121,115180.0,115170.0,0.2847137]
[1760310447120,0.02198121,115180.0,115170.0,0.3342548]
[1760310447392,0.3520557,115180.0,115170.0,0.3920048]
[1760310447580,0.02009149,115180.0,115170.0,0.3920048]
[1760310447792,0.0120557,115180.0,115170.0,0.3920048]
[1760310451606,0.0120557,115180.0,115170.0,0.3424637]
[1760310452434,0.0120557,115180.0,115170.0,0.33612554]
[1760310455929,0.05549607,115180.0,115170.0,0.33612554]
[1760310457555,0.05549607,115180.0,115170.0,0.07137578]
[1760310457758,0.05549607,115180.0,115170.0,0.31415948]
[1760310458140,0.09459607,115180.0,115170.0,0.28451633]
[1760310458863,0.39549607,115180.0,115170.0,0.28451633]
[1760310460245,0.39549607,115180.0,115170.0,0.11086]
[1760310460445,0.65720695,115180.0,115170.0,0.04172]
[1760310460656,0.75720695,115180.0,115170.0,0.04172]
[1760310461581,0.34,115160.0,115150.0,0.23265649]
[1760310461804,0.4218152,115160.0,115150.0,0.27437649]
[1760310462019,0.4218152,115160.0,115150.0,0.31531649]
[1760310462622,0.3523152,115160.0,115150.0,0.37282968]
[1760310462824,0.3523152,115160.0,115150.0,0.43057968]
[1760310463642,0.0123152,115160.0,115150.0,0.37306649]
[1760310464067,0.0534752,115160.0,115150.0,0.31531649]
[1760310464259,0.0824552,115160.0,115150.0,0.31395649]
[1760310464872,0.0412952,115160.0,115150.0,0.31395649]
[1760310465480,0.0123152,115160.0,115150.0,0.31395649]
[1760310465694,0.0123152,115160.0,115150.0,0.37409649]
[1760310466453,0.07729184,115160.0,115150.0,0.37409649]
[1760310468318,0.11845184,115160.0,115150.0,0.31395649]
[1760310468522,0.07729184,115160.0,115150.0,0.31395649]
[1760310468731,0.07729184,115160.0,115150.0,0.37702649]
[1760310470131,0.07729184,115160.0,115150.0,0.31395649]
[1760310471111,0.07729184,115160.0,115150.0,0.37702649]
[1760310473781,0.11584184,115160.0,115150.0,0.31395649]
[1760310473895,0.45584184,115160.0,115150.0,0.31395649]
[1760310477113,0.4603802,115160.0,115150.0,0.31395649]
[1760310477930,0.4603802,115160.0,115150.0,0.28335649]
[1760310478509,0.45584184,115160.0,115150.0,0.28335649]
[1760310479130,0.47323184,115160.0,115150.0,0.28335649]
[1760310479373,0.45584184,115160.0,115150.0,0.28335649]
[1760310479728,0.41729184,115160.0,115150.0,0.28335649]
[1760310480295,0.45584184,115160.0,115150.0,0.28335649]
[1760310481337,0.41729184,115160.0,115150.0,0.3669109]
[1760310481536,0.45584184,115160.0,115150.0,0.3038409]
[1760310481783,0.66093325,115160.0,115150.0,0.28760649]
[1760310481923,0.72025325,115160.0,115150.0,0.24199532]
[1760310482158,0.54658184,115160.0,115150.0,0.24199532]
[1760310482359,0.48726184,115160.0,115150.0,0.28346532]
[1760310482766,0.48726184,115160.0,115150.0,0.3383254]
[1760310482974,0.66093325,115160.0,115150.0,0.28760649]
[1760310483184,0.48726184,115160.0,115150.0,0.28760649]
[1760310484485,0.48726184,115160.0,115140.0,0.2699]
[1760310484486,0.17368649,115150.0,115140.0,0.2699]
[1760310484704,0.51371666,115130.0,115120.0,0.11049707]
[1760310484915,0.51371666,115130.0,115120.0,0.19368707]
[1760310484916,0.59713332,115130.0,115120.0,0.19368707]
[1760310485132,0.35344666,115130.0,115120.0,0.43048882]
[1760310485339,0.35344666,115130.0,115120.0,0.29815175]
[1760310485959,0.35353249,115130.0,115120.0,0.29815175]
[1760310486168,0.35353249,115130.0,115120.0,0.36122175]
[1760310487372,0.39208249,115130.0,115120.0,0.29815175]
[1760310487575,0.38495249,115130.0,115120.0,0.29815175]
[1760310487790,0.35353249,115130.0,115120.0,0.36122175]
[1760310487922,0.35353249,115130.0,115120.0,0.29815175]
[1760310488131,0.39208249,115130.0,115120.0,0.29815175]
[1760310488570,0.39662193,115130.0,115120.0,0.29815175]
[1760310488774,0.35807193,115130.0,115120.0,0.36122175]
[1760310490401,0.35807193,115130.0,115120.0,0.36222175]
[1760310491515,0.35807193,115130.0,115120.0,0.36322175]
[1760310491861,0.35807193,115130.0,115120.0,0.36222175]
[1760310493165,0.35807193,115130.0,115120.0,0.36122175]
[1760310493384,0.35807193,115130.0,115120.0,0.4237243]
[1760310493830,0.35807193,115130.0,115120.0,0.6936243]
[1760310494051,0.35807193,115130.0,115120.0,0.63312175]
[1760310494260,0.35807193,115130.0,115120.0,0.63212175]
[1760310494475,0.35807193,115130.0,115120.0,0.63112175]
[1760310495154,0.01807193,115130.0,115120.0,0.63112175]
[1760310495386,0.01807193,115130.0,115120.0,0.71984109]
[1760310495822,0.00462527,115130.0,115120.0,0.51244364]
[1760310496512,0.00462527,115130.0,115120.0,0.51344364]
[1760310496773,0.00462527,115130.0,115120.0,0.51244364]
[1760310497194,0.00462527,115130.0,115120.0,0.51444364]
[1760310497416,0.00462527,115130.0,115120.0,0.51344364]
[1760310497882,0.00462527,115130.0,115120.0,0.51444364]
[1760310498933,0.00462527,115130.0,115120.0,0.51344364]
[1760310500039,0.00462527,115130.0,115120.0,0.51444364]
[1760310500303,0.00462527,115130.0,115120.0,0.4257243]
[1760310500522,0.00462527,115130.0,115120.0,0.36322175]
[1760310500737,0.0447868,115130.0,115120.0,0.36222175]
[1760310500991,0.4223668,115130.0,115120.0,0.30015175]
[1760310501209,0.3847868,115130.0,115120.0,0.35817175]
[1760310501844,0.35807193,115130.0,115120.0,0.35817175]
[1760310502689,0.40160472,115130.0,115120.0,0.35717175]
[1760310502901,0.40160472,115130.0,115120.0,0.20096923]
[1760310503103,0.40160472,115130.0,115120.0,0.18173923]
[1760310503323,0.64223138,115130.0,115120.0,0.18173923]
[1760310503526,0.69938138,115130.0,115120.0,0.21545175]
[1760310503680,0.64223138,115130.0,115120.0,0.21545175]
[1760310503905,0.64223138,115130.0,115120.0,0.22179175]
[1760310504119,0.46851472,115130.0,115120.0,0.18905031]
[1760310504278,0.46851472,115130.0,115120.0,0.1061453]
[1760310504478,0.42498193,115130.0,115120.0,0.1061453]
[1760310505179,0.42498193,115130.0,115120.0,0.20819614]
[1760310505600,0.59869859,115130.0,115120.0,0.20819614]
[1760310506034,0.59869859,115130.0,115120.0,0.03446439]
[1760310506260,0.75584859,115130.0,115120.0,0.03446439]
[1760310506461,0.34,115110.0,115100.0,0.21368056]
[1760310506606,0.42111128,115110.0,115100.0,0.25540056]
[1760310506901,0.42111128,115110.0,115100.0,0.25545088]
[1760310508064,0.46475243,115110.0,115100.0,0.25545088]
[1760310508805,0.39784243,115110.0,115100.0,0.25545088]
[1760310509008,0.35420128,115110.0,115100.0,0.25545088]
[1760310509611,0.01420128,115110.0,115100.0,0.25545088]
[1760310510305,0.07428874,115130.0,115120.0,0.17373175]
[1760310510522,0.06160472,115130.0,115120.0,0.17373175]
[1760310510734,0.01807193,115130.0,115120.0,0.17373175]
[1760310511776,0.00462527,115130.0,115120.0,0.17373175]
[1760310511982,0.00462527,115130.0,115120.0,0.17473175]
[1760310512599,0.00462527,115130.0,115120.0,0.13615346]
[1760310513012,0.00462527,115130.0,115120.0,0.13515346]
[1760310513227,0.00462527,115130.0,115120.0,0.1003056]
[1760310513429,0.00462527,115130.0,115120.0,0.002]
[1760310513642,0.00462527,115130.0,115120.0,0.0963658]
[1760310514069,0.08498193,115130.0,115120.0,0.17373175]
[1760310514999,0.40160472,115130.0,115120.0,0.20847961]
[1760310515426,0.35807193,115130.0,115120.0,0.20847961]
[1760310516190,0.01807193,115130.0,115120.0,0.20847961]
[1760310516760,0.01807193,115130.0,115120.0,0.20947961]
[1760310517293,0.00462527,115130.0,115120.0,0.21047961]
[1760310517498,0.00462527,115130.0,115120.0,0.20947961]
[1760310517716,0.00462527,115130.0,115120.0,0.21047961]
[1760310519191,0.00462527,115130.0,115120.0,0.20947961]
[1760310519385,0.00462527,115130.0,115120.0,0.21047961]
[1760310520030,1e-08,115130.0,115120.0,0.21047961]
[1760310520232,0.02933,115180.0,115170.0,0.17365633]
[1760310520399,0.47611626,115180.0,115160.0,0.17367141]
[1760310520615,0.38107969,115170.0,115160.0,0.17367141]
[1760310520817,0.07865969,115170.0,115160.0,0.17367141]
[1760310521057,0.41865969,115170.0,115160.0,0.21539141]
[1760310521706,0.44477838,115170.0,115160.0,0.21539141]
[1760310521909,0.72742174,115170.0,115160.0,0.21539141]
[1760310522714,0.64514958,115170.0,115160.0,0.21539141]
[1760310522954,0.44477838,115170.0,115160.0,0.21539141]
[1760310523123,0.44677838,115170.0,115160.0,0.21539141]
[1760310523298,0.44577838,115170.0,115160.0,0.21539141]
[1760310524067,0.44477838,115170.0,115160.0,0.21539141]
[1760310525221,0.37786838,115170.0,115160.0,0.21539141]
[1760310525422,0.36611869,115170.0,115160.0,0.21539141]
[1760310525591,0.34,115170.0,115160.0,0.21539141]
[1760310526396,0.40047927,115180.0,115170.0,0.17365633]
[1760310526600,0.45314048,115180.0,115170.0,0.17365633]
[1760310527823,0.51611048,115180.0,115170.0,0.17365633]
[1760310527986,0.45314048,115180.0,115170.0,0.17365633]
[1760310530433,0.04271048,115180.0,115170.0,0.2125611]
[1760310531024,0.11219048,115180.0,115170.0,0.17365633]
[1760310532588,0.11219048,115180.0,115170.0,0.22038558]
[1760310533570,0.00503306,115180.0,115170.0,0.22038558]
[1760310534030,0.00503306,115180.0,115170.0,0.17365633]
[1760310535016,0.04558306,115180.0,115170.0,0.17365633]
[1760310535256,0.04558306,115180.0,115170.0,0.22036956]
[1760310535413,0.00503306,115180.0,115170.0,0.22136544]
[1760310535619,0.00503306,115180.0,115170.0,0.22457013]
[1760310535836,0.00503306,115180.0,115170.0,0.22357013]
[1760310536583,0.00503306,115180.0,115170.0,0.28595129]
[1760310537320,0.00503306,115180.0,115170.0,0.40563271]
[1760310537520,0.00049505,115180.0,115170.0,0.4306327]
[1760310538536,0.00049505,115180.0,115170.0,0.76925154]
[1760310539077,0.00049505,115180.0,115170.0,0.77025154]
[1760310540364,0.00049505,115180.0,115170.0,0.84802445]
[1760310540751,0.00049505,115180.0,115170.0,0.77025154]
[1760310541169,0.00049505,115180.0,115170.0,0.84802445]
[1760310541576,1e-08,115180.0,115170.0,0.84802445]
[1760310541804,0.02893,115230.0,115170.0,0.84802445]
[1760310541805,0.1,115230.0,115190.0,0.20730747]
[1760310542017,0.01039086,115230.0,115220.0,0.17358097]
[1760310542206,0.34982589,115230.0,115220.0,0.17358097]
[1760310542403,0.35436146,115230.0,115220.0,0.17358097]
[1760310542609,0.35435859,115230.0,115220.0,0.17358097]
[1760310543209,0.35535859,115230.0,115220.0,0.17358097]
[1760310543358,0.35435859,115230.0,115220.0,0.20916537]
[1760310543562,0.39490859,115230.0,115220.0,0.20916537]
[1760310543781,0.39590859,115230.0,115220.0,0.20916537]
[1760310543989,0.5984045,115230.0,115200.0,0.22031208]
[1760310544213,0.03898404,115220.0,115210.0,0.17359517]
[1760310544444,0.07953404,115220.0,115210.0,0.17359517]
[1760310544952,0.08877197,115220.0,115210.0,0.17359517]
[1760310546293,0.08877197,115220.0,115200.0,0.22031208]
[1760310546294,0.26235294,115220.0,115190.0,0.71660707]
[1760310546545,0.02893,115210.0,115200.0,0.17361111]
[1760310546754,0.1,115210.0,115200.0,0.17361111]
[1760310547154,0.44,115210.0,115200.0,0.17361111]
[1760310547381,0.38055,115210.0,115200.0,0.17361111]
[1760310547593,0.40948,115210.0,115200.0,0.17361111]
[1760310549180,0.59350679,115210.0,115190.0,0.23589638]
[1760310549441,0.54254111,115200.0,115190.0,0.3321761]
[1760310549643,0.58309111,115200.0,115190.0,0.50580228]
[1760310550075,0.58309111,115200.0,115190.0,0.44352618]
[1760310550076,0.6262433,115200.0,115190.0,0.44352618]
[1760310550500,0.6262433,115200.0,115180.0,0.58375368]
[1760310550920,0.40948,115200.0,115190.0,0.08122833]
[1760310551351,0.40948,115200.0,115190.0,0.08222833]
[1760310551560,0.58309111,115200.0,115190.0,0.08222833]
[1760310551797,0.59389862,115200.0,115190.0,0.04272]
[1760310552000,0.59389862,115200.0,115190.0,0.1049961]
[1760310552905,0.59389862,115200.0,115190.0,0.1039961]
[1760310553110,0.59389862,115200.0,115190.0,0.27762228]
[1760310553715,0.42028751,115200.0,115190.0,0.27762228]
[1760310553932,0.35080751,115200.0,115190.0,0.32476797]
[1760310554151,0.34,115200.0,115190.0,0.32476797]
[1760310555399,0.58309111,115200.0,115190.0,0.1039961]
[1760310555618,0.64460111,115200.0,115190.0,0.1039961]
[1760310555954,0.58309111,115200.0,115190.0,0.27762228]
[1760310556165,0.58309111,115200.0,115190.0,0.54752228]
[1760310556364,0.40948,115200.0,115190.0,0.54752228]
[1760310556582,0.34,115200.0,115190.0,0.62050556]
[1760310558075,0.34,115200.0,115190.0,0.58823131]
[1760310558294,0.34,115200.0,115190.0,0.51408651]
[1760310558504,0.34,115200.0,115190.0,0.43926331]
[1760310558937,0.38315219,115200.0,115190.0,0.43926331]
[1760310559805,0.38315219,115200.0,115190.0,0.43896088]
[1760310563170,0.34,115200.0,115190.0,0.43896088]
[1760310563710,0.34,115200.0,115190.0,0.3659776]
[1760310563910,0.38014,115200.0,115190.0,0.3659776]
[1760310564117,0.64145111,115200.0,115190.0,0.48524618]
[1760310564386,0.46784,115200.0,115190.0,0.48524618]
[1760310564733,0.40906,115200.0,115190.0,0.48524618]
[1760310564940,0.40906,115200.0,115190.0,0.21534618]
[1760310566426,0.34,115200.0,115190.0,0.21534618]
[1760310567228,0.38014,115200.0,115190.0,0.21534618]
[1760310567367,0.40906,115200.0,115190.0,0.21534618]
[1760310567568,0.59347862,115200.0,115190.0,0.21534618]
[1760310567770,0.69541081,115200.0,115190.0,0.21534618]
[1760310568126,0.63663081,115200.0,115190.0,0.21534618]
[1760310568279,0.63663081,115200.0,115190.0,0.03342597]
[1760310568480,0.4630197,115200.0,115190.0,0.20705215]
[1760310568999,0.43725751,115200.0,115190.0,0.1449758]
[1760310569241,0.41986751,115200.0,115190.0,0.20746543]
[1760310571411,0.59347862,115200.0,115190.0,0.20746543]
[1760310572310,0.59347862,115200.0,115190.0,0.1449758]
[1760310572743,0.37972751,115200.0,115190.0,0.1449758]
[1760310572943,0.39094751,115200.0,115190.0,0.1449758]
[1760310573965,0.56455862,115200.0,115190.0,0.4148758]
[1760310574523,0.59347862,115200.0,115190.0,0.31162]
[1760310574723,0.59347862,115200.0,115190.0,0.04172]
[1760310574947,0.35080751,115200.0,115190.0,0.21534618]
[1760310575697,0.35080751,115200.0,115190.0,0.48524618]
[1760310576255,0.35080751,115200.0,115190.0,0.53833075]
[1760310576459,0.35080751,115200.0,115190.0,0.16385097]
[1760310576667,0.35080751,115200.0,115190.0,0.20557097]
[1760310577007,0.3939597,115200.0,115190.0,0.20557097]
[1760310577203,0.3939597,115200.0,115190.0,0.1524864]
[1760310577421,0.3984924,115200.0,115190.0,0.1524864]
[1760310577841,0.35534021,115200.0,115190.0,0.04172]
[1760310578042,0.35534021,115200.0,115190.0,0.21534618]
[1760310578845,0.35534021,115200.0,115190.0,0.27783581]
[1760310579045,0.37273021,115200.0,115190.0,0.35084044]
[1760310579287,0.35534021,115200.0,115190.0,0.35084044]
[1760310580135,0.35534021,115200.0,115190.0,0.28835081]
[1760310580433,0.35534021,115200.0,115190.0,0.35084044]
[1760310580669,0.35534021,115200.0,115190.0,0.28835081]
[1760310580873,0.35534021,115200.0,115190.0,0.35084044]
[1760310581290,0.35534021,115200.0,115190.0,0.28835081]
[1760310582133,0.3445327,115200.0,115190.0,0.47052186]
[1760310582263,0.0045327,115200.0,115190.0,0.49552185]
[1760310582695,0.0045327,115200.0,115190.0,0.83303222]
[1760310583104,0.0045327,115200.0,115190.0,0.89553984]
[1760310583772,0.0045327,115200.0,115190.0,0.89753984]
[1760310584812,0.0045327,115200.0,115190.0,0.89553984]
[1760310585023,0.0045327,115200.0,115190.0,0.89753984]
[1760310585183,0.0045327,115200.0,115190.0,0.89653984]
[1760310585390,0.0045327,115200.0,115190.0,0.89866984]
[1760310585720,0.0045327,115200.0,115190.0,0.90047984]
[1760310586091,0.0045327,115200.0,115190.0,0.83732789]
[1760310586530,0.0045327,115200.0,115190.0,0.83632789]
[1760310586662,0.0045327,115200.0,115190.0,0.72685366]
[1760310586873,0.0045327,115200.0,115190.0,0.90047984]
[1760310587589,0.00895731,115230.0,115220.0,0.17358097]
[1760310587794,0.00014847,115230.0,115220.0,0.2082974]
[1760310587984,0.00014847,115230.0,115220.0,0.2099974]
[1760310588180,0.00014847,115230.0,115220.0,0.2110574]
[1760310589491,0.00014847,115230.0,115220.0,0.17634097]
[1760310589903,0.00014847,115230.0,115220.0,0.17573627]
[1760310593943,0.04376559,115230.0,115220.0,0.09190856]
[1760310594163,0.00014847,115230.0,115220.0,0.07077435]
[1760310594338,0.00014847,115230.0,115220.0,0.12060011]
[1760310594548,0.00014847,115230.0,115220.0,0.15001845]
[1760310595820,0.00014847,115230.0,115220.0,0.15136947]
[1760310596695,0.00014847,115230.0,115220.0,0.10462154]
[1760310599060,0.00014847,115230.0,115220.0,0.10019269]
[1760310602488,0.04242847,115230.0,115220.0,0.2716]
[1760310602693,0.70901434,115230.0,115220.0,0.0017]
[1760310602897,0.44951834,115230.0,115220.0,0.0017]
[1760310603119,0.17358097,115220.0,115200.0,0.23713464]
[1760310603317,0.34,115210.0,115200.0,0.23607464]
[1760310603574,0.34,115210.0,115200.0,0.23713464]
[1760310603776,0.34,115210.0,115200.0,0.23883464]
[1760310603905,0.41293,115210.0,115200.0,0.06246582]
[1760310604105,0.34,115210.0,115200.0,0.23777693]
[1760310604311,0.38310007,115210.0,115200.0,0.27323223]
[1760310604682,0.04310007,115210.0,115200.0,0.16843655]
[1760310604908,0.04310007,115210.0,115200.0,0.16943655]
[1760310605474,0.34,115220.0,115210.0,0.17359604]
[1760310605885,0.36610437,115220.0,115210.0,0.17359604]
[1760310606105,0.36610437,115220.0,115210.0,0.2077933]
[1760310607097,0.36610437,115220.0,115210.0,0.2087933]
[1760310607390,0.36610437,115220.0,115210.0,0.2504733]
[1760310607796,0.36610437,115220.0,115210.0,0.21627604]
[1760310608232,0.40838437,115220.0,115210.0,0.21627604]
[1760310608381,0.36610437,115220.0,115210.0,0.21627604]
[1760310611497,0.40838437,115220.0,115210.0,0.21627604]
[1760310611632,0.36610437,115220.0,115210.0,0.21627604]
[1760310612323,0.36610437,115220.0,115210.0,0.21527604]
[1760310613449,0.36610437,115220.0,115210.0,0.21627604]
[1760310613881,0.37259611,115220.0,115210.0,0.21627604]
[1760310614524,0.37259611,115220.0,115210.0,0.27873353]
[1760310615581,0.37259611,115220.0,115210.0,0.54863353]
[1760310617845,0.37259611,115220.0,115210.0,0.6231644]
[1760310618816,0.37259611,115220.0,115210.0,0.56070691]
[1760310619613,0.37259611,115220.0,115210.0,0.62318199]
[1760310619842,0.37259611,115220.0,115210.0,0.54865153]
[1760310623175,0.44579611,115220.0,115210.0,0.54865153]
[1760310623998,0.37259611,115220.0,115210.0,0.54865153]
[1760310628456,0.37259611,115220.0,115210.0,0.41132829]
[1760310628696,0.37259611,115220.0,115210.0,0.4425199]
[1760310630157,0.41646081,115220.0,115210.0,0.47584976]
[1760310631810,0.41646081,115220.0,115210.0,0.4425199]
[1760310633869,0.37259611,115220.0,115210.0,0.33774992]
[1760310634506,0.37259611,115220.0,115210.0,0.1288054]
[1760310635341,0.03259611,115220.0,115210.0,0.1288054]
[1760310637646,0.03259611,115220.0,115210.0,0.13072271]
[1760310637856,0.03259611,115220.0,115210.0,0.1568907]
[1760310639428,0.03259611,115220.0,115210.0,0.1537679]
[1760310639779,0.03259611,115220.0,115210.0,0.1288054]
[1760310640167,0.03259611,115220.0,115210.0,0.1298054]
[1760310640370,0.03259611,115220.0,115210.0,0.3997054]
[1760310640593,0.03259611,115220.0,115210.0,0.33314342]
[1760310640885,0.34486112,115220.0,115210.0,0.06586033]
[1760310641232,0.17128015,115220.0,115210.0,0.06586033]
[1760310641876,0.15591485,115220.0,115210.0,0.06586033]
[1760310642072,0.08651485,115220.0,115210.0,0.25793263]
[1760310642286,0.04265015,115220.0,115210.0,0.25793263]
[1760310643014,0.08651485,115220.0,115210.0,0.25793263]
[1760310643626,0.08651485,115220.0,115210.0,0.25893263]
[1760310643960,0.42651485,115220.0,115210.0,0.24045637]
[1760310644860,0.07646081,115220.0,115210.0,0.24045637]
[1760310645065,0.05035644,115220.0,115210.0,0.24045637]
[1760310645481,0.00649174,115220.0,115210.0,0.36504779]
[1760310645690,0.00649174,115220.0,115210.0,0.39004778]
[1760310645913,0.00649174,115220.0,115210.0,0.45094279]
[1760310648329,0.00649174,115220.0,115210.0,0.85094279]
[1760310650835,0.04376559,115230.0,115220.0,0.17358097]
[1760310651011,0.04376559,115230.0,115220.0,0.17532097]
[1760310651206,0.04376559,115230.0,115220.0,0.17811097]
[1760310651431,0.04376559,115230.0,115220.0,0.26683031]
[1760310652662,0.00014847,115230.0,115220.0,0.01114103]
[1760310652896,0.00014847,115230.0,115220.0,0.11470687]
[1760310654756,0.00014847,115230.0,115220.0,0.25938828]
[1760310655196,0.00014847,115230.0,115220.0,0.65938828]
[1760310655401,0.00014847,115230.0,115220.0,0.74810762]
[1760310656495,0.00070511,115230.0,115220.0,0.74810762]
[1760310656669,0.00070511,115230.0,115220.0,0.74910762]
[1760310657892,0.00070511,115230.0,115220.0,0.75010762]
[1760310658093,0.00070511,115230.0,115220.0,0.35010762]
[1760310658734,0.00070511,115230.0,115220.0,0.75010762]
[1760310658958,0.00070511,115230.0,115220.0,0.72510763]
[1760310659377,0.00070511,115230.0,115220.0,0.57558097]
[1760310659591,0.04432223,115230.0,115220.0,0.17558097]
[1760310659793,0.04316511,115230.0,115220.0,0.17558097]
[1760310659995,0.00070511,115230.0,115220.0,0.17558097]
[1760310660238,0.02680692,115230.0,115220.0,0.17558097]